fUSD/lending_fUSD_20250824
["ID","MTS","AMOUNT","RATE_DAILY","PERIOD"]
[381081723,1756011047129,-156.0,0.000188,4]
[381081724,1756011047138,-156.39,0.000188,4]
[381081725,1756011047148,-1342.93,0.000188,2]
[381081726,1756011047157,-500.0,0.00018818,2]
[381081727,1756011047167,-1085.0,0.00018842,2]
[381081728,1756011047177,-209.0,0.0001885,2]
[381081729,1756011047187,-500.0,0.00018866,2]
[381081730,1756011047197,-1566.76,0.000189,2]
[381081731,1756011047206,-376.01,0.000189,2]
[381081732,1756011047215,-1410.06,0.000189,2]
[381081733,1756011047225,-2000.0,0.000189,2]
[381081734,1756011047234,-800.0,0.000189,6]
[381081735,1756011047244,-500.0,0.00018914,2]
[381081736,1756011047253,-879.0,0.00018931,2]
[381081737,1756011047262,-1000.0,0.00018934,2]
[381081738,1756011047271,-1613.0,0.00018959,2]
[381081739,1756011047280,-500.0,0.00018962,2]
[381081740,1756011047289,-947.87234437,0.00018973,2]
[381081741,1756011047299,-150.0,0.00018981,2]
[381081742,1756011047308,-831.82015418,0.00018982,2]
[381081743,1756011047317,-1060.1629416,0.00018983,2]
[381081744,1756011047326,-1288.50572902,0.00018984,2]
[381081745,1756011047336,-1516.84851645,0.00018985,2]
[381081746,1756011047345,-1745.19130387,0.00018986,2]
[381081747,1756011047355,-1973.53409129,0.00018987,2]
[381081748,1756011047364,-2201.87687871,0.00018988,2]
[381081749,1756011047373,-2430.21966613,0.00018989,2]
[381081750,1756011047382,-2658.56245357,0.0001899,2]
[381081751,1756011047391,-300.0,0.00018999,2]
[381081752,1756011047400,-300.0,0.00018999,2]
[381081753,1756011047411,-300.0,0.00018999,2]
[381081754,1756011047420,-300.0,0.00018999,2]
[381081755,1756011047430,-300.0,0.00018999,2]
[381081756,1756011047440,-300.0,0.00018999,2]
[381081757,1756011047450,-2000.0,0.00019,2]
[381081758,1756011047459,-2000.0,0.00019,2]
[381081759,1756011047468,-290.05913465,0.00019,2]
[381081760,1756011047478,-379824.83999818,0.00019,2]
[381081761,1756011047487,-63351.72363872,0.00019,2]
[381081762,1756011047496,-1475.63025201,0.00019,2]
[381081763,1756011047506,-350.0,0.00019,2]
[381081764,1756011047515,-500.0,0.0001901,2]
[381081765,1756011047528,-300.0,0.00019041,2]
[381081766,1756011047538,-347.04,0.00019041,2]
[381081767,1756011047547,-500.0,0.00019058,2]
[381081768,1756011047558,-1500.0,0.00019068,2]
[381081769,1756011047568,-1501.29369474,0.00019068,2]
[381081770,1756011047577,-1500.0,0.00019068,2]
[381081771,1756011047587,-500.0,0.00019106,2]
[381081772,1756011047599,-500.0,0.00019154,2]
[381081773,1756011047608,-1315.21763554,0.00019164,2]
[381081774,1756011047618,-2500.0,0.00019164,2]
[381081775,1756011047627,-2500.0,0.00019164,2]
[381081776,1756011047636,-300.0,0.00019172,2]
[381081777,1756011047646,-151.0,0.00019177,2]
[381081778,1756011047655,-558.13,0.00019177,2]
[381081779,1756011047664,-151.0,0.00019178,2]
[381081780,1756011047674,-332.60791905,0.0001918,2]
[381081781,1756011047685,-152.0,0.00019183,4]
[381081782,1756011047696,-2666.2,0.000192,2]
[381081783,1756011047705,-500.0,0.00019202,2]
[381081784,1756011047715,-879.0,0.00019205,2]
[381081785,1756011047724,-500.0,0.0001925,2]
[381081786,1756011047734,-171.6154,0.00019293,2]
[381081787,1756011047743,-500.0,0.00019298,2]
[381081788,1756011047752,-150.90354151,0.00019307,2]
[381081789,1756011047762,-156.65684742,0.00019344,2]
[381081790,1756011047771,-500.0,0.00019346,2]
[381081791,1756011047780,-500.0,0.00019394,2]
[381081792,1756011047789,-500.0,0.00019442,2]
[381081793,1756011047799,-879.0,0.00019479,2]
[381081794,1756011047808,-500.0,0.00019491,2]
[381081795,1756011047817,-167.77,0.00019538,2]
[381081796,1756011047827,-500.0,0.00019539,2]
[381081797,1756011047836,-209.0,0.0001957,2]
[381081798,1756011047845,-500.0,0.00019587,2]
[381081799,1756011047854,-13418.16970594,0.00019607,2]
[381081800,1756011047863,-182.1100734,0.00019611,3]
[381081801,1756011047873,-1411.52928819,0.00019616,2]
[381081802,1756011047882,-500.0,0.00019635,2]
[381081803,1756011047892,-500.0,0.00019683,2]
[381081804,1756011047900,-343.0,0.000197,2]
[381081805,1756011047910,-2501.42695074,0.00019712,2]
[381081806,1756011047919,-3000.0,0.00019712,2]
[381081807,1756011047928,-558.13,0.00019725,2]
[381081808,1756011047938,-156.587,0.00019726,2]
[381081809,1756011047956,-500.0,0.00019731,2]
[381081810,1756011047965,-881.21997922,0.00019753,2]
[381081811,1756011047974,-500.0,0.00019779,2]
[381081812,1756011047983,-500.0,0.00019827,2]
[381081813,1756011047992,-1085.0,0.00019834,2]
[381081814,1756011048001,-193.81,0.00019863,2]
[381081815,1756011048010,-1000.0,0.00019866,2]
[381081816,1756011048019,-300.0,0.00019869,2]
[381081817,1756011048029,-300.0,0.00019869,2]
[381081818,1756011048039,-300.0,0.00019869,2]
[381081819,1756011048048,-300.0,0.00019869,2]
[381081820,1756011048057,-300.0,0.00019869,2]
[381081821,1756011048066,-22298.74978242,0.0001987,2]
[381081822,1756011048076,-500.0,0.00019875,2]
[381081823,1756011048085,-500.0,0.00019923,2]
[381081824,1756011048094,-152.0,0.00019968,5]
[381081825,1756011048104,-514.0,0.0001997,2]
[381081826,1756011048113,-500.0,0.00019971,2]
[381081827,1756011048123,-1185.08,0.00019999,2]
[381081828,1756011048132,-538.02,0.00019999,2]
[381081829,1756011048142,-1185.08,0.00019999,2]
[381081830,1756011048151,-300.0,0.00019999,2]
[381081831,1756011048160,-300.0,0.00019999,2]
[381081832,1756011048169,-300.0,0.00019999,2]
[381081833,1756011048178,-300.0,0.00019999,2]
[381081834,1756011048187,-2000.0,0.00019999,2]
[381081835,1756011048197,-1503.28536837,0.0002,2]
[381081836,1756011048206,-200.0,0.0002,2]
[381081837,1756011048216,-8118.30409329,0.0002,14]
[381081838,1756011048225,-1269.49427322,0.0002,2]
[381081839,1756011048241,-303.02749745,0.0002,2]
[381081840,1756011048260,-1139.00539241,0.0002,2]
[381081841,1756011048269,-55132.85128045,0.0002,7]
[381081842,1756011048355,-286.15,0.0002,7]
[381081843,1756011087750,300.0,0.00028767,120]
[381081844,1756011088078,300.0,0.00028767,120]
[381081845,1756011088947,300.0,0.00028767,120]
[381081846,1756011089267,300.0,0.00028767,120]
[381081847,1756011089660,300.0,0.00028767,120]
[381081848,1756011089890,154.63869,0.00028767,120]
[381081852,1756011723883,907.543407,0.0002876,120]
[381081853,1756011894761,-4811.0,0.0002,7]
[381081858,1756012059041,349.3065,0.00010745,2]
[381081859,1756012060830,-267.26186924,0.00010745,2]
[381081860,1756012062215,-178.51926999,0.00010745,2]
[381081861,1756012065387,-569.81477122,0.00010745,2]
[381081862,1756012068939,-391.99496783,0.00010745,2]
[381081863,1756012070612,-385.9774032,0.00010745,2]
[381081864,1756012075275,-272.62125252,0.00010745,2]
[381081865,1756012075297,-15.96837197,0.000108,2]
[381081866,1756012078514,-145.03162803,0.000108,2]
[381081873,1756012232278,-186.57804022,0.00011236,2]
[381081874,1756012232287,-186.4342994,0.00011335,2]
[381081875,1756012232297,-192.28089958,0.00011335,2]
[381081876,1756012232306,-305.79199329,0.00011335,2]
[381081877,1756012232354,-111.75496231,0.00011335,2]
[381081878,1756012232363,-150.0,0.00011335,2]
[381081879,1756012232373,-217.0,0.00011335,2]
[381081880,1756012232383,-300.0,0.00011335,2]
[381081881,1756012232393,-1200.0,0.00011335,2]
[381081882,1756012232405,-589.97673764,0.00011336,2]
[381081883,1756012232419,-589.97673764,0.00011336,2]
[381081884,1756012232429,-115.14090601,0.00011336,2]
[381081885,1756012232449,-474.83583163,0.00011336,2]
[381081886,1756012232458,-589.97673764,0.00011336,2]
[381081887,1756012232468,-589.97673764,0.00011336,2]
[381081888,1756012232478,-589.97673764,0.00011336,2]
[381081889,1756012232487,-589.97673764,0.00011336,2]
[381081890,1756012232496,-589.97673764,0.00011336,2]
[381081891,1756012232505,-589.97673764,0.00011336,2]
[381081892,1756012232516,-589.97673764,0.00011336,2]
[381081893,1756012232525,-589.97673764,0.00011336,2]
[381081894,1756012232534,-589.97673764,0.00011336,2]
[381081895,1756012232543,-589.97673764,0.00011336,2]
[381081896,1756012232553,-589.97673764,0.00011336,2]
[381081897,1756012232563,-589.97673764,0.00011336,2]
[381081898,1756012232574,-589.97673764,0.00011336,2]
[381081899,1756012232583,-589.97673764,0.00011336,2]
[381081900,1756012232593,-589.97673764,0.00011336,2]
[381081901,1756012232603,-589.97673764,0.00011336,2]
[381081902,1756012232612,-589.97673764,0.00011336,2]
[381081903,1756012232621,-589.97673764,0.00011336,2]
[381081904,1756012232631,-589.97673764,0.00011336,2]
[381081905,1756012232640,-589.97673764,0.00011336,2]
[381081906,1756012232649,-589.97673764,0.00011336,2]
[381081907,1756012232658,-589.97673764,0.00011336,2]
[381081908,1756012232668,-589.97673764,0.00011336,2]
[381081909,1756012232677,-589.97673764,0.00011336,2]
[381081910,1756012232687,-589.97673764,0.00011336,2]
[381081911,1756012232696,-589.97673764,0.00011336,2]
[381081912,1756012232706,-589.97673764,0.00011336,2]
[381081913,1756012232716,-589.97673764,0.00011336,2]
[381081914,1756012232726,-589.97673764,0.00011336,2]
[381081915,1756012232735,-589.97673764,0.00011336,2]
[381081916,1756012232745,-589.97673764,0.00011336,2]
[381081917,1756012232755,-589.97673764,0.00011336,2]
[381081918,1756012232765,-589.97673764,0.00011336,2]
[381081919,1756012232775,-589.97673764,0.00011336,2]
[381081920,1756012232785,-589.97673764,0.00011336,2]
[381081921,1756012232795,-589.97673764,0.00011336,2]
[381081922,1756012232804,-589.97673764,0.00011336,2]
[381081923,1756012232813,-589.97673764,0.00011336,2]
[381081924,1756012232823,-589.97673764,0.00011336,2]
[381081925,1756012232836,-589.97673764,0.00011336,2]
[381081926,1756012232846,-589.97673764,0.00011336,2]
[381081927,1756012232857,-589.97673764,0.00011336,2]
[381081928,1756012232866,-589.97673764,0.00011336,2]
[381081929,1756012232876,-589.97673764,0.00011336,2]
[381081930,1756012232888,-589.97673764,0.00011336,2]
[381081931,1756012232899,-589.97673764,0.00011336,2]
[381081932,1756012232912,-589.97673764,0.00011336,2]
[381081933,1756012232922,-589.97673764,0.00011336,2]
[381081934,1756012232931,-589.97673764,0.00011336,2]
[381081935,1756012232940,-589.97673764,0.00011336,2]
[381081936,1756012232950,-589.97673764,0.00011336,2]
[381081937,1756012232959,-576.49155507,0.00011336,2]
[381081938,1756012232969,-576.49155507,0.00011336,2]
[381081939,1756012232978,-576.49155507,0.00011336,2]
[381081940,1756012232987,-576.49155507,0.00011336,2]
[381081941,1756012232997,-576.49155507,0.00011336,2]
[381081942,1756012233006,-576.49155507,0.00011336,2]
[381081943,1756012233016,-576.49155507,0.00011336,2]
[381081944,1756012233026,-576.49155507,0.00011336,2]
[381081945,1756012233035,-576.49155507,0.00011336,2]
[381081946,1756012233044,-576.49155507,0.00011336,2]
[381081947,1756012233053,-576.49155507,0.00011336,2]
[381081948,1756012233063,-576.49155507,0.00011336,2]
[381081949,1756012233072,-576.49155507,0.00011336,2]
[381081950,1756012233082,-576.49155507,0.00011336,2]
[381081951,1756012233091,-576.49155507,0.00011336,2]
[381081952,1756012233100,-576.49155507,0.00011336,2]
[381081953,1756012233110,-576.49155507,0.00011336,2]
[381081954,1756012233119,-576.49155507,0.00011336,2]
[381081955,1756012233128,-576.49155507,0.00011336,2]
[381081956,1756012233137,-576.49155507,0.00011336,2]
[381081957,1756012233147,-576.49155507,0.00011336,2]
[381081958,1756012233157,-576.49155507,0.00011336,2]
[381081959,1756012233167,-576.49155507,0.00011336,2]
[381081960,1756012233176,-576.49155507,0.00011336,2]
[381081961,1756012233185,-576.49155507,0.00011336,2]
[381081962,1756012233194,-576.49155507,0.00011336,2]
[381081963,1756012233204,-576.49155507,0.00011336,2]
[381081964,1756012233213,-576.49155507,0.00011336,2]
[381081965,1756012233223,-576.49155507,0.00011336,2]
[381081966,1756012233232,-576.49155507,0.00011336,2]
[381081967,1756012233242,-576.49155507,0.00011336,2]
[381081968,1756012233252,-576.49155507,0.00011336,2]
[381081969,1756012233262,-576.49155507,0.00011336,2]
[381081970,1756012233272,-576.49155507,0.00011336,2]
[381081971,1756012233282,-576.49155491,0.00011336,2]
[381081972,1756012233291,-250.0,0.00011366,2]
[381081973,1756012233301,-250.0,0.00011447,2]
[381081974,1756012233311,-152.41643363,0.00011634,2]
[381081975,1756012233320,-200.0,0.00011634,2]
[381081976,1756012233330,-2000.0,0.0001188,3]
[381081977,1756012233339,-500.0,0.000119,2]
[381081978,1756012233348,-2000.0,0.0001236,3]
[381081979,1756012233358,-255.0,0.00012389,2]
[381081980,1756012233368,-501.61804041,0.00012448,2]
[381081981,1756012233377,-420.0,0.00012451,2]
[381081982,1756012233386,-1288.30299379,0.00012468,2]
[381081983,1756012233399,-391.69700621,0.00012468,2]
[381081984,1756012233408,-250.0,0.0001247,2]
[381081985,1756012233418,-2500.0,0.0001247,2]
[381081986,1756012233427,-522.45,0.00012929,2]
[381081987,1756012233436,-587.0,0.00013678,2]
[381081988,1756012233445,-313.582339,0.00013698,2]
[381081989,1756012233455,-151.0,0.00013699,2]
[381081990,1756012233464,-645.45,0.00013699,2]
[381081991,1756012233473,-277.35679052,0.0001383,2]
[381081992,1756012233482,-151.0,0.00014572,2]
[381081993,1756012233491,-151.0,0.00014635,2]
[381081994,1756012233501,-151.0,0.00014645,2]
[381081995,1756012233511,-151.0,0.00014648,2]
[381081996,1756012233521,-250.0,0.00015,2]
[381081997,1756012233531,-287.61899177,0.00015199,2]
[381081998,1756012233540,-2000.0,0.00015753,2]
[381081999,1756012233550,-151.0,0.00016438,2]
[381082000,1756012233559,-600.0,0.00016438,2]
[381082001,1756012233569,-600.0,0.00016438,2]
[381082002,1756012233578,-600.0,0.00016438,2]
[381082003,1756012233588,-600.0,0.00016438,2]
[381082004,1756012233597,-600.0,0.00016438,2]
[381082005,1756012233607,-600.0,0.00016438,2]
[381082006,1756012233616,-325.15449704,0.00016438,2]
[381082007,1756012235506,-274.84550296,0.00016438,2]
[381082008,1756012235517,-600.0,0.00016438,2]
[381082009,1756012235528,-600.0,0.00016438,2]
[381082010,1756012235538,-600.0,0.00016438,2]
[381082011,1756012235547,-600.0,0.00016438,2]
[381082012,1756012235556,-160.0,0.00016515,2]
[381082014,1756012235565,-298.26089446,0.00016568,2]
[381082015,1756012235575,-300.0,0.00017,2]
[381082016,1756012235584,-666.0,0.00017058,3]
[381082017,1756012235593,-200.0,0.00017158,2]
[381082018,1756012235603,-1000.0,0.00017361,2]
[381082019,1756012235612,-81.42362269,0.00017381,2]
[381082045,1756012237978,-232.15871631,0.00017381,2]
[381082047,1756012237988,-2000.0,0.000175,2]
[381082049,1756012237997,-1000.0,0.00017583,2]
[381082051,1756012238007,-250.0,0.00017586,2]
[381082052,1756012238017,-500.0,0.00017808,2]
[381082053,1756012238027,-500.0,0.00017918,2]
[381082054,1756012238036,-309.29654756,0.00017937,2]
[381082055,1756012238046,-500.0,0.00018027,2]
[381082056,1756012238055,-442.158,0.00018081,2]
[381082057,1756012238064,-500.0,0.00018137,2]
[381082058,1756012238073,-500.0,0.00018247,2]
[381082059,1756012238082,-168.0,0.00018303,2]
[381082060,1756012238091,-157.2196083,0.00018354,7]
[381082062,1756012238101,-500.0,0.00018356,2]
[381082064,1756012238110,-500.0,0.00018466,2]
[381082066,1756012238119,-150.0,0.0001852,2]
[381082068,1756012238128,-9999.99,0.00018533,2]
[381082070,1756012238137,-2000.0,0.00018554,2]
[381082072,1756012238146,-500.0,0.00018575,2]
[381082074,1756012238155,-764.67712783,0.000186,2]
[381082078,1756012238176,-1235.32287217,0.000186,2]
[381082079,1756012238185,-500.0,0.00018685,2]
[381082080,1756012238204,-168.0,0.00018733,2]
[381082081,1756012238215,-500.0,0.00018795,2]
[381082082,1756012238225,-541.97946016,0.000188,2]
[381082083,1756012238236,-1000.0,0.000188,2]
[381082084,1756012238512,-458.02053984,0.000188,2]
[381082085,1756012238522,-166.0,0.000189,2]
[381082086,1756012238532,-150.0,0.00018904,2]
[381082087,1756012238542,-500.0,0.00018904,2]
[381082088,1756012238551,-2000.0,0.00019,2]
[381082089,1756012238561,-253.068401,0.00019,2]
[381082090,1756012238571,-500.0,0.00019014,2]
[381082091,1756012238580,-500.0,0.00019123,2]
[381082092,1756012238590,-151.0,0.00019177,2]
[381082093,1756012238600,-163.44596678,0.00019178,2]
[381082094,1756012238609,-2000.0,0.000192,2]
[381082095,1756012238619,-500.0,0.00019233,2]
[381082096,1756012238628,-320.74051982,0.00019306,2]
[381082097,1756012238638,-500.0,0.00019342,2]
[381082098,1756012238647,-456.6318911,0.00019379,2]
[381082099,1756012238657,-500.0,0.00019452,2]
[381082100,1756012238667,-500.0,0.00019562,2]
[381082101,1756012238676,-500.0,0.00019671,2]
[381082102,1756012238686,-150.50386813,0.00019717,2]
[381082103,1756012238695,-500.0,0.00019753,2]
[381082104,1756012238705,-150.0,0.00019753,2]
[381082105,1756012238714,-150.0,0.00019753,2]
[381082106,1756012238723,-150.0,0.00019753,2]
[381082107,1756012238733,-500.0,0.00019753,2]
[381082108,1756012238743,-500.0,0.00019781,2]
[381082109,1756012238753,-1000.0,0.00019781,2]
[381082110,1756012238762,-171.61539,0.000198,2]
[381082111,1756012238771,-150.27,0.0001985,2]
[381082112,1756012238780,-193.81,0.00019863,2]
[381082113,1756012238790,-500.0,0.0001989,2]
[381082114,1756012238800,-332.12,0.00019999,2]
[381082115,1756012238809,-10139.05635834,0.0002,7]
[381082116,1756012238825,-1158.61199548,0.0002,7]
[381082117,1756012238868,-505.0,0.0002,7]
[381082118,1756012238880,-6164.33036573,0.0002,7]
[381082119,1756012238890,-180.0,0.0002,2]
[381082120,1756012238899,-1000.0,0.0002,2]
[381082121,1756012238909,-500.0,0.0002,2]
[381082122,1756012238919,-212.11701231,0.0002,7]
[381082123,1756012238929,-32.03302196,0.0002,7]
[381082126,1756012239824,-426.60444385,0.0002,7]
[381082127,1756012239836,-165.7,0.0002,2]
[381082128,1756012239847,-500.0,0.00020027,2]
[381082129,1756012239857,-150.0,0.00020027,2]
[381082130,1756012239866,-150.0,0.00020027,2]
[381082131,1756012239877,-555.42522408,0.00020027,2]
[381082132,1756012239887,-163.0,0.0002008,2]
[381082133,1756012239896,-500.0,0.0002011,2]
[381082134,1756012239906,-645.45,0.00020187,2]
[381082135,1756012239919,-500.0,0.00020219,2]
[381082136,1756012239929,-209.0,0.000203,2]
[381082137,1756012239939,-500.0,0.00020301,2]
[381082138,1756012239948,-150.0,0.00020301,2]
[381082139,1756012239958,-500.0,0.00020329,2]
[381082140,1756012239968,-500.0,0.00020438,2]
[381082141,1756012239977,-3261.21,0.00020547,2]
[381082142,1756012239987,-523.06146798,0.00020548,2]
[381082143,1756012239996,-258.0,0.00020575,2]
[381082144,1756012240006,-150.0,0.00020575,2]
[381082145,1756012240016,-332.60791905,0.00020675,2]
[381082146,1756012240025,-152.0,0.00020753,6]
[381082147,1756012240035,-206.56043456,0.00020753,5]
[381082148,1756012240045,-171.6154,0.000208,2]
[381082149,1756012240054,-336.47,0.0002082,2]
[381082150,1756012240064,-332.12,0.0002082,2]
[381082151,1756012240074,-1085.0,0.00020825,2]
[381082152,1756012240083,-150.0,0.00020849,2]
[381082153,1756012240093,-2000.0,0.00020895,2]
[381082154,1756012240102,-2000.0,0.00020895,2]
[381082155,1756012240112,-150.90354151,0.000209,2]
[381082157,1756012240122,-1168.95276544,0.00021,2]
[381082159,1756012240131,-192.94686565,0.00021,2]
[381082161,1756012240141,-343.82,0.00021,2]
[381082162,1756012240151,-2000.0,0.00021,2]
[381082163,1756012240160,-466.62235,0.00021,30]
[381082164,1756012240173,-466.62235,0.00021,30]
[381082165,1756012240508,-466.62235,0.00021,30]
[381082166,1756012240522,-466.62235,0.00021,30]
[381082167,1756012240532,-466.62235,0.00021,30]
[381082168,1756012240541,-209.0,0.0002102,2]
[381082169,1756012240551,-313.582339,0.00021064,2]
[381082170,1756012240560,-325.11375028,0.000211,2]
[381082171,1756012240572,-91.88624972,0.000211,2]
[381082172,1756012240582,-250.0,0.00021123,2]
[381082173,1756012240592,-500.0,0.00021178,2]
[381082174,1756012240601,-500.0,0.00021178,2]
[381082175,1756012240611,-500.0,0.00021178,2]
[381082176,1756012240620,-150.27,0.0002122,2]
[381082177,1756012240629,-641.0,0.0002126,2]
[381082178,1756012240638,-300.0,0.0002126,4]
[381082179,1756012240648,-160.0,0.0002127,2]
[381082180,1756012240657,-2000.0,0.00021356,2]
[381082181,1756012240666,-266.13146085,0.00021378,2]
[381082182,1756012240689,-233.86853915,0.00021378,2]
[381082183,1756012240698,-217.50642705,0.000215,2]
[381082184,1756012240708,-600.0,0.00021616,2]
[381082185,1756012240718,-300.0,0.00021643,4]
[381082186,1756012240727,-1000.0,0.00021726,2]
[381082187,1756012240736,-500.0,0.00021726,2]
[381082188,1756012240746,-1105.11828227,0.00021726,2]
[381082189,1756012240755,-209.0,0.0002175,2]
[381082190,1756012240765,-171.6154,0.000218,2]
[381082191,1756012240774,-500.0,0.00021823,2]
[381082192,1756012240783,-1085.0,0.00021866,2]
[381082193,1756012240793,-150.90354151,0.00021902,2]
[381082194,1756012240802,-151.0,0.00021916,2]
[381082195,1756012240811,-5000.0,0.00021918,2]
[381082196,1756012240820,-520.3510504,0.00021918,2]
[381082197,1756012240830,-500.0,0.00021926,2]
[381082198,1756012240842,-1881.53,0.00021945,30]
[381082199,1756012240851,-1000.0,0.00021979,2]
[381082200,1756012240860,-160.97,0.00022,2]
[381082201,1756012240870,-473.0,0.00022,2]
[381082202,1756012240879,-344.91441206,0.00022044,2]
[381082203,1756012240890,-484.24601667,0.000221,2]
[381082204,1756012240900,-225.82,0.000221,2]
[381082205,1756012240910,-235.3234876,0.0002211,2]
[381082206,1756012240919,-1014.71,0.00022149,2]
[381082207,1756012240929,-5002.93940456,0.00022159,2]
[381082208,1756012240938,-5000.0,0.00022159,2]
[381082209,1756012240948,-5000.0,0.00022159,2]
[381082210,1756012240957,-5000.0,0.00022159,2]
[381082211,1756012240966,-600.0,0.00022164,2]
[381082212,1756012240976,-20000.0,0.000222,7]
[381082213,1756012240985,-1500.0,0.00022274,2]
[381082214,1756012240994,-1000.0,0.00022371,2]
[381082215,1756012241003,-152.83,0.00022373,2]
[381082216,1756012241013,-313.0,0.0002245,2]
[381082217,1756012241022,-209.0,0.0002247,2]
[381082218,1756012241032,-243.42,0.000225,2]
[381082219,1756012241041,-600.0,0.00022712,2]
[381082220,1756012241051,-3261.21,0.00022739,4]
[381082221,1756012241061,-500.0,0.00022799,2]
[381082222,1756012241070,-2000.0,0.00022822,2]
[381082223,1756012241080,-500.0,0.00022899,2]
[381082224,1756012241089,-150.90354151,0.00022903,2]
[381082225,1756012241098,-171.47392746,0.00022919,2]
[381082226,1756012241108,-1085.0,0.0002296,2]
[381082227,1756012241117,-569.8147,0.00022999,2]
[381082228,1756012241126,-160.0,0.00023,3]
[381082229,1756012241136,-166.0,0.00023,7]
[381082230,1756012241146,-160.61,0.000231,7]
[381082231,1756012241155,-209.0,0.000232,2]
[381082232,1756012241165,-437.16658749,0.0002326,2]
[381082233,1756012241255,-162.83341251,0.0002326,2]
[381082234,1756012241265,-25.80256207,0.00023287,2]
[381082235,1756012241283,-974.19743793,0.00023287,2]
[381082236,1756012241294,-166.0,0.00023288,7]
[381082237,1756012241303,-225.82,0.00023297,2]
[381082238,1756012241312,-2500.0,0.0002337,2]
[381082239,1756012241321,-260.051124,0.00023413,2]
[381082240,1756012241333,-97.6251213,0.00023413,2]
[381082241,1756012241343,-184.78266181,0.000235,3]
[381082242,1756012241359,-470.21733819,0.000235,3]
[381082243,1756012241368,-131.78266181,0.0002363,2]
[381082252,1756012243017,-175.21733819,0.0002363,2]
[381082253,1756012243027,-844.27675029,0.00023688,2]
[381082254,1756012243036,-156.65684748,0.00023708,2]
[381082255,1756012243046,-172.07146975,0.00023753,30]
[381082256,1756012243055,-1566.76,0.000238,2]
[381082257,1756012243065,-376.01,0.000238,2]
[381082258,1756012243074,-1410.06,0.000238,2]
[381082259,1756012243083,-600.0,0.00023808,2]
[381082260,1756012243093,-156.65684742,0.0002382,2]
[381082261,1756012243102,-1014.71,0.0002389,2]
[381082262,1756012243112,-6500.31755208,0.000239,2]
[381082263,1756012243140,-341.46735558,0.000239,2]
[381082270,1756012245797,-1468.16841973,0.000239,2]
[381082271,1756012245807,-150.90354151,0.00023905,2]
[381082272,1756012245817,-3000.0,0.00023918,2]
[381082273,1756012245827,-209.0,0.0002392,2]
[381082274,1756012245837,-1000.0,0.00023972,2]
[381082275,1756012245848,-500.0,0.00023973,2]
[381082276,1756012245857,-1014.71,0.0002399,2]
[381082277,1756012245866,-1014.71,0.0002399,2]
[381082278,1756012245875,-1014.71,0.0002399,2]
[381082279,1756012245885,-500.0,0.00023999,2]
[381082280,1756012245894,-500.0,0.00023999,2]
[381082281,1756012245903,-217.40552407,0.00023999,2]
[381082282,1756012245914,-236.54676991,0.00023999,2]
[381082283,1756012245945,-63.45323009,0.00023999,2]
[381082284,1756012245954,-300.0,0.00023999,2]
[381082285,1756012245963,-450.0,0.00023999,6]
[381082286,1756012245973,-3731.85918994,0.00024,2]
[381082287,1756012246006,-355.70410511,0.00024,2]
[381082288,1756012246031,-1042.4337992,0.00024,2]
[381082289,1756012246043,-1010.1,0.00024,2]
[381082290,1756012246154,-1907.42836594,0.00024,2]
[381082291,1756012246199,-688.6638008,0.00024,2]
[381082301,1756012366786,-500.0,0.00011333,2]
[381082302,1756012366808,-500.0,0.00011333,2]